bitfinex-derivatives/quotes_ETHF0:USTF0_20250712
["timestamp","ask_amount","ask_price","bid_price","bid_amount"]
[1752356588024,3.33377,2938.8,2938.7,1.6111]
[1752356588833,3.33377,2938.8,2938.7,2.29137]
[1752356589533,3.3338,2938.7,2938.6,2.29139]
[1752356590636,3.3338,2938.7,2938.6,3.10854932]
[1752356591438,2.6535,2938.7,2938.6,3.10854932]
[1752356591632,2.6535,2938.7,2938.6,0.68029]
[1752356591830,2.6535,2938.7,2938.3,2.29146]
[1752356591831,2.33447,2938.4,2938.3,2.29146]
[1752356592034,3.33387,2938.4,2938.3,2.29146]
[1752356592333,3.33387,2938.4,2938.3,1.6111]
[1752356593040,3.33382,2938.5,2938.4,3.21754]
[1752356593236,2.6535,2938.5,2938.4,4.03469932]
[1752356594234,3.33382,2938.5,2938.4,2.42825932]
[1752356594940,3.33382,2938.5,2938.4,3.35435932]
[1752356595636,3.33382,2938.5,2938.4,4.03469932]
[1752356596041,3.33382,2938.5,2938.4,6.56215932]
[1752356596235,3.33382,2938.5,2938.4,3.2078]
[1752356597936,3.33382,2938.5,2938.4,6.42534]
[1752356599042,3.33382,2938.5,2938.4,5.49924]
[1752356599240,1.67972,2938.5,2938.4,7.24249932]
[1752356599442,3.33382,2938.5,2938.4,7.24249932]
[1752356600343,2.6535,2938.5,2938.4,7.24249932]
[1752356602843,2.6535,2938.5,2938.4,5.49924]
[1752356603542,3.33382,2938.5,2938.4,5.49924]
[1752356604046,2.6535,2938.5,2938.4,3.21754]
[1752356604945,3.33382,2938.5,2938.4,3.21754]
[1752356605245,2.6535,2938.5,2938.4,2.29144]
[1752356606844,2.6535,2938.5,2938.4,3.21754]
[1752356607539,2.6535,2938.5,2938.4,2.29144]
[1752356607746,2.6535,2938.5,2938.4,0.68034]
[1752356608141,3.2078,2939.3,2939.2,0.68016]
[1752356608447,3.8725,2939.3,2939.2,3.21736]
[1752356608647,0.6647,2939.3,2939.2,3.21736]
[1752356610148,3.8725,2939.7,2939.6,1.60617]
[1752356610740,4.8619,2939.7,2939.6,1.60617]
[1752356611043,4.8619,2939.7,2939.6,3.21727]
[1752356612748,4.8619,2939.7,2939.6,2.27057]
[1752356612948,4.8619,2939.7,2939.6,3.21727]
[1752356619748,1.6541,2939.7,2939.6,3.21727]
[1752356625260,3.8508,2939.9,2939.8,1.32042]
[1752356625455,4.7934,2939.9,2939.8,2.23612]
[1752356625659,4.7934,2939.9,2939.8,3.23282]
[1752356629964,1.5856,2939.9,2939.8,3.23282]
[1752356632773,2.2656,2939.9,2939.8,3.23282]
[1752356633068,3.2586,2939.9,2939.8,3.23282]
[1752356633566,13.2078,2940.0,2939.9,0.68]
[1752356633863,13.2078,2940.0,2939.9,4.04911285]
[1752356634070,14.7934,2940.0,2939.9,4.04911285]
[1752356634768,14.7934,2940.0,2939.9,3.2328]
[1752356634963,11.5856,2940.0,2939.9,3.2328]
[1752356635166,12.5786,2940.0,2939.9,3.2328]
[1752356636867,11.5856,2940.0,2939.9,3.2328]
[1752356637572,12.5786,2940.0,2939.9,3.2328]
[1752356638966,12.5786,2940.0,2939.9,1.6767]
[1752356639671,10.0,2940.0,2939.9,3.2328]
[1752356639871,10.0,2940.0,2939.9,6.4406]
[1752356640270,10.0,2940.0,2939.9,7.52887332]
[1752356643176,12.5786,2940.0,2939.9,6.4406]
[1752356644274,13.25857,2940.0,2939.9,6.4406]
[1752356644472,13.25857,2940.0,2939.9,5.5249]
[1752356644670,13.25857,2940.0,2939.9,3.2078]
[1752356645270,13.25857,2940.0,2939.9,3.8878]
[1752356646973,13.25857,2940.0,2939.9,4.8222]
[1752356647974,13.25857,2940.0,2939.9,3.8878]
[1752356648578,13.25857,2940.0,2939.9,4.8222]
[1752356648778,13.25857,2940.0,2939.9,6.3897]
[1752356650480,13.25857,2940.0,2939.9,3.1819]
[1752356651884,12.26557,2940.0,2939.9,3.1819]
[1752356652085,11.5856,2940.0,2939.9,3.1819]
[1752356652979,11.5856,2940.0,2939.9,4.27017332]
[1752356653183,10.0,2940.0,2939.9,4.27017332]
[1752356655988,10.9176,2940.0,2939.9,4.27017332]
[1752356656786,11.5369,2940.0,2939.9,4.27017332]
[1752356657592,12.5055,2940.0,2939.9,4.27017332]
[1752356657790,11.5369,2940.0,2939.9,4.27017332]
[1752356659488,12.5055,2940.0,2939.9,4.27017332]
[1752356660193,11.5369,2940.0,2939.9,4.27017332]
[1752356660796,11.5369,2940.0,2939.9,7.47797332]
[1752356663497,10.0,2940.0,2939.9,7.47797332]
[1752356664100,10.6193,2940.0,2939.9,7.47797332]
[1752356664294,11.5369,2940.0,2939.9,7.47797332]
[1752356665801,11.5369,2940.0,2939.9,4.27017332]
[1752356666001,12.5055,2940.0,2939.9,7.47797332]
[1752356666899,10.0,2940.0,2939.9,7.47797332]
[1752356667404,11.5369,2940.0,2939.9,7.47797332]
[1752356668598,12.5055,2940.0,2939.9,7.47797332]
[1752356669893,12.5055,2940.0,2939.9,30.82797332]
[1752356670797,11.5369,2940.0,2939.9,30.82797332]
[1752356671496,10.9176,2940.0,2939.9,30.82797332]
[1752356671802,10.0,2940.0,2939.9,30.82797332]
[1752356676610,10.6193,2940.0,2939.9,30.82797332]
[1752356676903,11.5649,2940.0,2939.9,30.82797332]
[1752356677101,9.01061,2940.0,2939.9,30.82797332]
[1752356677305,8.26840418,2940.0,2939.9,30.82797332]
[1752356680209,9.81450418,2940.0,2939.9,30.82797332]
[1752356682810,9.81450418,2940.0,2939.9,30.55574897]
[1752356684611,9.81450418,2940.0,2939.9,27.34794897]
[1752356684814,9.81450418,2940.0,2939.9,30.55574897]
[1752356687516,8.26840418,2940.0,2939.9,30.55574897]
[1752356689814,10.76440418,2940.0,2939.9,30.55574897]
[1752356690115,9.81450418,2940.0,2939.9,30.55574897]
[1752356691015,8.26840418,2940.0,2939.9,30.55574897]
[1752356691724,8.86890418,2940.0,2939.9,30.55574897]
[1752356692019,9.81450418,2940.0,2939.9,30.55574897]
[1752356692815,10.76440418,2940.0,2939.9,51.38484897]
[1752356693022,11.44437418,2940.0,2939.9,50.70484897]
[1752356693515,11.44437418,2940.0,2939.9,52.32924897]
[1752356693718,11.44437418,2940.0,2939.9,53.28704897]
[1752356694313,11.44437418,2940.0,2939.9,52.60704897]
[1752356695120,11.44437418,2940.0,2939.9,53.28704897]
[1752356695321,11.44437418,2940.0,2939.9,52.60704897]
[1752356695822,11.44437418,2940.0,2939.9,53.28704897]
[1752356700631,10.76440418,2940.0,2939.9,53.28704897]
[1752356701024,11.44437418,2940.0,2939.9,53.28704897]
[1752356702732,10.49447418,2940.0,2939.9,53.28704897]
[1752356703030,8.26840418,2940.0,2939.9,53.28704897]
[1752356705030,9.81450418,2940.0,2939.9,53.28704897]
[1752356705727,10.76440418,2940.0,2939.9,30.61014897]
[1752356706631,11.44437418,2940.0,2939.9,3.2078]
[1752356706832,11.44437418,2940.0,2939.9,27.36184897]
[1752356707633,11.44437418,2940.0,2939.9,28.27104897]
[1752356707828,11.44437418,2940.0,2939.9,30.56484897]
[1752356708932,11.44437418,2940.0,2939.9,29.7488]
[1752356709530,10.76440418,2940.0,2939.9,29.7488]
[1752356709929,11.44437418,2940.0,2939.9,29.7488]
[1752356710135,10.76440418,2940.0,2939.9,29.7488]
[1752356713636,10.76440418,2940.0,2939.9,26.541]
[1752356713835,10.76440418,2940.0,2939.9,29.7488]
[1752356714229,10.76440418,2940.0,2939.9,26.541]
[1752356714528,10.76440418,2940.0,2939.9,29.7488]
[1752356714931,9.81450418,2940.0,2939.9,29.7488]
[1752356715131,10.49447418,2940.0,2939.9,29.7488]
[1752356715331,11.48007418,2940.0,2939.9,29.7488]
[1752356721726,11.49977418,2940.0,2939.9,29.7488]
[1752356731843,11.49977418,2940.0,2939.9,26.541]
[1752356735248,10.51417418,2940.0,2939.9,26.541]
[1752356735453,11.49977418,2940.0,2939.9,26.541]
[1752356737354,10.51417418,2940.0,2939.9,26.541]
[1752356737546,9.56567418,2940.0,2939.9,26.541]
[1752356737751,8.94837418,2940.0,2939.9,26.541]
[1752356738958,10.51967418,2940.0,2939.9,26.541]
[1752356740758,11.46467418,2940.0,2939.9,26.541]
[1752356741558,10.78470418,2940.0,2939.9,26.541]
[1752356743657,11.46467418,2940.0,2939.9,26.541]
[1752356744658,10.78470418,2940.0,2939.9,26.541]
[1752356745658,11.46467418,2940.0,2939.9,26.541]
[1752356746356,10.78470418,2940.0,2939.9,26.541]
[1752356746560,11.46467418,2940.0,2939.9,26.541]
[1752356749063,10.51967418,2940.0,2939.9,26.541]
[1752356749666,8.94837418,2940.0,2939.9,26.541]
[1752356750565,9.57747418,2940.0,2939.9,26.541]
[1752356750768,10.51967418,2940.0,2939.9,26.541]
[1752356753268,9.83970418,2940.0,2939.9,26.541]
[1752356753767,10.51967418,2940.0,2939.9,26.541]
[1752356753963,11.46467418,2940.0,2939.9,26.541]
[1752356754868,10.51967418,2940.0,2939.9,26.541]
[1752356755771,3.19632,2939.9,2939.8,26.58731]
[1752356758567,3.19632,2939.9,2939.8,0.68001]
[1752356758760,2.5163,2939.8,2939.7,6.47513]
[1752356759070,1.5713,2939.8,2939.7,30.60936308]
[1752356759866,2.5163,2939.8,2939.7,30.60936308]
[1752356762772,2.5163,2939.8,2939.7,27.40156308]
[1752356764571,2.5163,2939.8,2939.7,0.68003]
[1752356764769,3.19632,2939.8,2939.7,27.40056308]
[1752356766074,2.5163,2939.8,2939.7,27.40056308]
[1752356770770,2.5163,2939.8,2939.7,4.08356308]
[1752356770975,3.19632,2939.8,2939.7,27.39756308]
[1752356773373,3.19632,2939.8,2939.7,1.66994]
[1752356773574,3.15189,2939.5,2939.4,1.8094]
[1752356773782,0.6008,2939.3,2939.2,6.32046]
[1752356773982,2.4718,2939.3,2939.2,5.41446]
[1752356774376,2.4718,2939.3,2939.2,6.32046]
[1752356774577,2.4718,2939.3,2939.2,7.13669308]
[1752356774980,3.15194,2939.3,2939.2,7.13669308]
[1752356776280,3.15194,2939.3,2939.2,3.88796]
[1752356776481,0.68018,2939.1,2939.0,0.81623308]
[1752356776680,3.15201,2939.0,2938.9,6.32052]
[1752356777485,3.15201,2939.0,2938.9,7.13675308]
[1752356780286,0.68014,2939.3,2939.2,3.11266]
[1752356780481,0.68013,2939.4,2939.3,2.48951]
[1752356780680,3.8879,2939.5,2939.4,0.68011]
[1752356780883,3.8879,2939.5,2939.4,3.92884308]
[1752356781081,4.8257,2939.5,2939.4,3.92884308]
[1752356781782,1.6179,2939.5,2939.4,3.92884308]
[1752356784491,2.2187,2939.5,2939.4,3.92884308]
[1752356787192,3.1519,2939.5,2939.4,3.92884308]
[1752356787392,3.1519,2939.5,2939.4,2.48951]
[1752356787591,3.1519,2939.5,2939.4,3.11261]
[1752356787989,1.28091,2939.4,2939.3,3.2078]
[1752356788193,3.15196,2939.3,2939.2,0.68016]
[1752356789489,1.28096,2939.2,2939.1,1.58357]
[1752356789794,3.15196,2939.2,2939.1,1.58357]
[1752356790495,3.15196,2939.2,2939.1,0.9034]
[1752356790698,3.15196,2939.2,2939.0,2.40242308]
[1752356790699,0.68018,2939.1,2939.0,1.72223308]
[1752356790891,3.152,2939.0,2938.9,4.7343]
[1752356791292,0.68025,2938.8,2938.7,1.58626]
[1752356791490,3.15205,2938.8,2938.7,1.58366]
[1752356791693,3.15205,2938.8,2938.7,2.48966]
[1752356791890,3.15205,2938.8,2938.7,0.68026]
[1752356792191,3.15205,2938.8,2938.7,3.11276]
[1752356793297,2.4718,2938.8,2938.7,3.11276]
[1752356797101,3.15205,2938.8,2938.7,3.11276]
[1752356797494,3.15205,2938.8,2938.7,2.4325]
[1752356798200,3.15205,2938.8,2938.7,3.11277]
[1752356800000,3.15205,2938.8,2938.7,2.4325]
[1752356800902,3.15205,2938.8,2938.7,1.5265]
[1752356801111,3.15205,2938.8,2938.7,0.9034]
[1752356802613,3.15205,2938.8,2938.7,2.5074]
[1752356803013,3.15205,2938.8,2938.7,3.18767]
[1752356803717,3.15205,2938.8,2938.7,1.5292]
[1752356804311,2.32677,2938.7,2938.6,5.8058]
[1752356804513,3.30737,2938.7,2938.6,5.8058]
[1752356804918,3.30737,2938.7,2938.6,3.2078]
[1752356805915,3.30742,2938.5,2938.4,1.9722]
[1752356806110,3.30742,2938.5,2938.4,2.598]
[1752356806508,3.30742,2938.5,2938.4,1.6198]
[1752356806706,3.30744,2938.4,2938.3,5.8058]
[1752356807806,1.34159,2938.2,2938.1,1.6198]
[1752356808006,3.30749,2938.2,2938.1,1.6198]
[1752356808217,3.30749,2938.2,2938.1,2.598]
[1752356808411,2.32696,2937.9,2937.8,2.598]
[1752356808615,3.30756,2937.9,2937.8,2.598]
[1752356809017,3.30756,2937.9,2937.8,0.994]
[1752356809319,3.30756,2937.9,2937.8,1.6198]
[1752356810313,3.30756,2937.9,2937.8,2.598]
[1752356810515,3.30756,2937.9,2937.8,1.6198]
[1752356810714,1.34171,2937.7,2937.6,6.48631]
[1752356810916,3.30761,2937.7,2937.6,5.8058]
[1752356812922,3.30761,2937.7,2937.6,0.994]
[1752356813521,1.34175,2937.5,2937.4,1.604]
[1752356813723,3.30765,2937.5,2937.4,2.598]
[1752356814326,3.30765,2937.5,2937.4,3.27857]
[1752356814923,3.30765,2937.5,2937.4,2.598]
[1752356815620,2.32705,2937.5,2937.4,3.27857]
[1752356815820,0.9853,2937.8,2937.7,0.6258]
[1752356816017,3.2078,2938.6,2938.5,1.30612]
[1752356816222,3.8881,2938.6,2938.5,3.27832]
[1752356816422,3.2078,2938.6,2938.5,3.27832]
[1752356817226,1.66559,2938.7,2938.6,0.68029]
[1752356817527,2.32679,2938.7,2938.6,3.27829]
[1752356817828,1.6465,2938.7,2938.6,3.27829]
[1752356818828,2.32677,2938.7,2938.6,3.27829]
[1752356819226,3.2078,2939.3,2938.7,1.70063]
[1752356819431,3.2078,2939.3,2939.2,3.27815]
[1752356822125,0.68011,2939.4,2939.2,1.30595]
[1752356822331,0.68011,2939.4,2939.3,2.598]
[1752356822735,0.68011,2939.4,2939.3,3.27813]
[1752356823035,0.68011,2939.4,2939.3,2.598]
[1752356829036,2.29651,2939.4,2939.3,2.598]
[1752356833136,3.25791,2939.4,2939.3,2.598]
[1752356834934,3.25791,2939.4,2939.3,0.994]
[1752356835236,2.5778,2939.2,2939.1,0.68016]
[1752356835634,2.5778,2939.2,2939.1,3.18776]
[1752356835940,3.25798,2939.2,2939.1,3.18776]
[1752356839342,1.33108,2939.1,2939.0,3.88798]
[1752356839536,3.25798,2939.1,2939.0,3.88798]
[1752356839741,3.25798,2939.1,2939.0,3.18778]
[1752356840141,3.25798,2939.1,2939.0,6.39558]
[1752356843043,2.29658,2939.1,2939.0,6.39558]
[1752356843342,2.29658,2939.1,2939.0,3.18778]
[1752356843543,3.25798,2939.1,2939.0,0.924]
[1752356843843,1.33112,2938.9,2938.8,2.5076]
[1752356844042,3.25802,2938.9,2938.8,2.5076]
[1752356844243,3.25802,2938.9,2938.8,3.18785]
[1752356845844,3.25802,2938.9,2938.8,2.5076]
[1752356847444,0.6509,2938.7,2938.6,5.74888]
[1752356847643,2.5778,2938.7,2938.6,6.39568]
[1752356848846,3.25807,2938.7,2938.6,6.39568]
[1752356849341,3.25807,2938.7,2938.6,3.18788]
[1752356851351,3.25807,2938.7,2938.6,2.5076]
[1752356856649,3.25807,2938.7,2938.6,0.924]
[1752356857052,3.25807,2938.7,2938.6,2.5307]
[1752356857252,4.90837,2938.9,2938.2,6.41818]
[1752356857253,2.22556,2938.3,2938.2,6.41818]
[1752356858853,2.22556,2938.3,2938.2,3.21038]
[1752356859053,2.22556,2938.3,2938.2,6.41818]
[1752356860650,2.22556,2938.3,2938.2,3.21038]
[1752356860948,2.22556,2938.3,2938.2,6.41818]
[1752356861150,2.22556,2938.3,2938.2,5.7378]
[1752356861352,3.22476,2938.3,2938.2,5.7378]
[1752356865755,3.22476,2938.3,2938.2,2.53]
[1752356865959,3.22476,2938.3,2938.2,5.7378]
[1752356870256,3.22476,2938.3,2938.2,2.53]
[1752356886880,4.04211514,2938.3,2938.2,1.5553]
[1752356887482,4.04211514,2938.3,2938.2,2.5536]
[1752356887877,0.68043,2938.0,2937.9,3.2078]
[1752356888082,3.24553,2938.0,2937.9,3.8085]
[1752356888582,3.24553,2938.0,2937.9,5.7197]
[1752356889978,3.24553,2938.0,2937.9,2.5119]
[1752356892583,3.24553,2938.0,2937.9,0.9129]
[1752356892778,3.24553,2938.0,2937.9,1.5136]
[1752356893081,3.24553,2938.0,2937.9,2.5119]
[1752356894978,3.24553,2938.0,2937.9,0.9129]
[1752356895184,2.25275,2937.9,2937.8,1.9112]
[1752356895381,1.32378,2937.8,2937.7,3.2078]
[1752356895587,3.24558,2937.8,2937.7,5.7197]
[1752356896985,4.33578197,2937.8,2937.7,5.7197]
[1752356898982,0.6433,2937.6,2937.5,1.9112]
[1752356899181,2.41402197,2937.6,2937.5,1.599]
[1752356899486,4.33582197,2937.6,2937.5,2.5119]
[1752356903582,0.68064,2937.1,2937.0,5.40205]
[1752356904287,0.68064,2937.1,2937.0,6.40035]
[1752356904786,0.68078,2936.5,2936.4,4.2061]
[1752356905085,0.68078,2936.5,2936.4,5.7197]
[1752356905086,2.25308,2936.5,2936.4,5.7197]
[1752356905284,3.24588,2936.5,2936.4,5.7197]
[1752356907078,3.2078,2937.9,2937.1,2.5119]
[1752356907284,3.2078,2938.2,2937.8,0.9983]
[1752356907485,3.2078,2938.2,2938.1,1.28111]
[1752356907685,3.2078,2938.2,2938.1,2.5119]
[1752356907885,3.2078,2938.2,2938.1,3.19231]
[1752356908088,3.2078,2938.2,2938.1,2.5119]
[1752356908288,3.2078,2938.2,2938.1,3.19231]
[1752356908983,3.2078,2938.8,2938.3,0.68035]
[1752356909184,0.68024,2938.9,2938.7,6.14967]
[1752356909389,1.67301,2939.0,2938.8,1.28095]
[1752356909583,0.9928,2939.0,2938.9,2.94182]
[1752356909778,0.68019,2939.1,2938.9,2.94182]
[1752356909983,0.68012,2939.4,2939.3,0.6626]
[1752356910182,1.67292,2939.4,2939.3,2.2616]
[1752356910383,1.67292,2939.4,2939.3,5.4694]
[1752356911080,0.68012,2939.4,2939.3,5.4694]
[1752356911283,2.31622,2939.4,2939.3,5.4694]
[1752356911489,3.24522,2939.4,2939.3,5.4694]
[1752356911983,2.31622,2939.4,2939.3,5.4694]
[1752356912388,1.67292,2939.4,2939.3,5.4694]
[1752356913784,2.31622,2939.4,2939.3,5.4694]
[1752356913985,3.24522,2939.4,2939.3,4.8068]
[1752356922996,3.24522,2939.4,2939.3,3.2078]
[1752356924799,1.29183,2939.3,2939.2,1.6123]
[1752356925101,3.14123,2939.3,2939.2,4.8201]
[1752356925503,3.14123,2939.3,2939.2,3.2078]
[1752356925703,1.29188,2939.1,2939.0,1.6123]
[1752356925904,3.14128,2939.1,2939.0,0.6348]
[1752356926200,3.14132,2938.9,2938.8,3.2078]
[1752356926399,3.14144,2938.4,2938.3,3.8426]
[1752356927000,3.14144,2938.4,2938.3,4.8201]
[1752356930801,3.14144,2938.4,2938.3,1.6123]
[1752356937808,3.14148,2938.2,2938.1,4.8201]
[1752356938408,3.14148,2938.2,2938.1,1.6123]
[1752356939410,0.68045,2937.9,2937.8,3.8426]
[1752356939615,1.29215,2937.9,2937.8,4.8201]
[1752356939915,3.14155,2937.9,2937.8,5.4832]
[1752356940614,3.14155,2937.9,2937.8,6.16368]
[1752356942415,3.14155,2937.9,2937.8,2.95588]
[1752356943808,3.14155,2937.9,2937.8,1.6123]
[1752356944710,3.1416,2937.7,2937.6,2.29282]
[1752356946413,1.5866,2937.7,2937.6,2.29282]
[1752356946614,1.5866,2937.7,2937.6,2.95522]
[1752356946912,1.5866,2937.7,2937.6,2.2747]
[1752356947618,2.2479,2937.7,2937.6,2.2747]
[1752356947811,3.1847,2937.7,2937.6,2.95522]
[1752356948213,0.9284,2938.0,2937.6,2.2747]
[1752356948416,1.5897,2938.3,2938.2,2.235]
[1752356948614,1.5897,2938.3,2938.2,2.91538]
[1752356948615,2.27006,2938.3,2938.2,2.91538]
[1752356949918,2.27006,2938.3,2937.2,23.273]
[1752356949919,1.8652,2936.9,2936.4,0.68079]
[1752356950112,1.8652,2937.0,2936.6,3.2078]
[1752356950320,0.68054,2937.6,2936.9,3.2078]
[1752356950514,0.9284,2937.6,2937.5,3.4034]
[1752356950714,5.073,2938.3,2937.5,3.2078]
[1752356950913,5.073,2938.3,2937.4,24.79420197]
[1752356950914,5.75338,2938.3,2938.2,3.4034]
[1752356951115,6.41468,2938.3,2938.2,3.4034]
[1752356951918,1.34196,2937.0,2936.9,3.2078]
[1752356952124,3.20716,2937.0,2936.9,6.6112]
[1752356952320,3.20716,2937.0,2936.9,7.4594]
[1752356953016,2.27036,2937.0,2936.9,7.4594]
[1752356953221,1.60906,2937.0,2936.9,7.4594]
[1752356953418,0.68066,2937.0,2936.9,7.4594]
[1752356956728,1.60906,2937.0,2936.9,7.4594]
[1752356958122,1.60906,2937.0,2936.9,8.14009]
[1752356958325,1.60906,2937.0,2936.9,7.4594]
[1752356958521,1.60906,2937.0,2936.9,8.14009]
[1752356959324,1.60906,2937.0,2936.9,7.4594]
[1752356959721,1.60906,2937.0,2936.9,4.93229]
[1752356959921,3.20716,2937.0,2936.9,4.93229]
[1752356962928,3.20716,2937.0,2936.9,4.2516]
[1752356963829,2.27062,2935.9,2935.8,0.8484]
[1752356964026,3.20742,2935.9,2935.8,0.8484]
[1752356964228,3.20742,2935.9,2935.8,4.2518]
[1752356965332,3.2078,2936.1,2935.8,4.2518]
[1752356965534,0.9284,2936.6,2936.1,0.8484]
[1752356965736,3.88855,2936.7,2936.6,1.52916]
[1752356965933,0.68072,2936.8,2936.7,0.68071]
[1752356966134,1.60912,2936.8,2936.7,1.52911]
[1752356966329,1.60912,2936.8,2936.7,4.93251]
[1752356966529,1.5897,2936.8,2936.7,4.93251]
[1752356966729,2.5265,2936.8,2936.7,3.4034]
[1752356966930,3.20721,2936.8,2936.7,3.4034]
[1752356967234,3.20721,2936.8,2936.7,4.2518]
[1752356967935,3.20721,2936.8,2936.7,4.93253]
[1752356968637,0.9284,2936.8,2936.7,4.93253]
[1752356968936,1.60909,2936.9,2936.8,1.52911]
[1752356969141,1.60909,2936.9,2936.8,4.93251]
[1752356970137,0.9284,2936.9,2936.8,4.93251]
[1752356971340,1.60909,2936.9,2936.8,4.93251]
[1752356971637,0.9284,2936.9,2936.8,4.93251]
[1752356971843,1.60909,2936.9,2936.8,4.93251]
[1752356974943,2.54589,2936.9,2936.8,4.93251]
[1752356976448,3.20719,2936.9,2936.8,4.93251]
[1752356983647,2.5265,2936.9,2936.8,4.93251]
[1752356984248,3.20719,2936.9,2936.8,4.93251]
[1752356985149,2.5265,2936.9,2936.8,4.93251]
[1752356986444,3.20719,2936.9,2936.8,4.93251]
[1752356986644,2.5265,2936.9,2936.8,4.93251]
[1752356987250,3.20719,2936.9,2936.8,4.93251]
[1752356987451,2.5265,2936.9,2936.8,4.93251]
[1752356991355,3.20719,2936.9,2936.8,4.93251]
[1752357001361,3.20719,2936.9,2936.8,4.08411]
[1752357002657,0.9284,2936.9,2936.8,4.92971]
[1752357002862,4.1914,2937.1,2937.0,2.37836]
[1752357003165,4.1914,2937.1,2937.0,52.98676]
[1752357003458,0.9836,2937.1,2937.0,52.98676]
[1752357004852,1.9334,2937.1,2937.0,52.98676]
[1752357005260,0.9498,2937.1,2937.0,52.98676]
[1752357005963,1.9334,2937.1,2937.0,52.98676]
[1752357011162,0.9623,2937.3,2937.2,0.68062]
[1752357011362,1.8911,2937.3,2937.2,49.19162]
[1752357011563,2.5463,2937.3,2937.2,52.92262]
[1752357011761,2.5463,2937.3,2937.2,52.59502]
[1752357011961,2.5463,2937.3,2937.2,52.92262]
[1752357012566,2.5463,2937.3,2937.2,52.59502]
[1752357013367,2.5463,2937.3,2937.2,52.86830531]
[1752357013565,2.5463,2937.3,2937.2,51.98640531]
[1752357016069,3.22689,2937.3,2937.2,51.98640531]
[1752357016371,2.5463,2937.3,2937.2,51.71312]
[1752357017867,4.31749036,2937.3,2937.2,51.71312]
[1752357019567,4.31749036,2937.3,2937.2,47.78662]
[1752357019772,4.31749036,2937.3,2937.2,47.106]
[1752357020873,4.31749036,2937.3,2937.2,47.78662]
[1752357021068,4.31749036,2937.3,2937.2,47.106]
[1752357021274,4.31749036,2937.3,2936.7,0.8509]
[1752357021275,2.5463,2936.7,2936.6,3.7309]
[1752357021474,2.5463,2936.7,2936.6,27.96366]
[1752357021672,2.5463,2936.7,2936.6,31.36706]
[1752357024377,3.22703,2936.7,2936.6,7.81506]
[1752357024671,2.5463,2936.7,2936.6,31.35306]
[1752357025076,2.5463,2936.7,2936.6,28.14526]
[1752357025372,2.5463,2936.5,2936.4,49.026]
[1752357025578,3.22708,2936.5,2936.4,73.2528]
[1752357025779,3.22708,2936.5,2936.4,72.572]
[1752357025975,3.22708,2936.5,2936.4,49.026]
[1752357026280,3.2271,2936.4,2936.3,0.2755265]
[1752357026479,4.31770036,2936.4,2936.3,23.8175265]
[1752357026681,3.2271,2936.4,2936.3,23.8175265]
[1752357027176,3.2271,2936.4,2936.3,24.22282]
[1752357027576,3.2271,2936.4,2936.3,23.542]
[1752357029179,3.2271,2936.4,2936.3,24.22282]
[1752357030281,3.2271,2936.4,2936.3,23.542]
[1752357032285,3.2271,2936.4,2936.3,24.22282]
[1752357036782,3.2271,2936.4,2936.3,25.59492]
[1752357036783,1.584,2936.4,2936.3,25.59492]
[1752357036985,0.9288,2936.4,2936.3,30.41702036]
[1752357037184,4.1197,2936.5,2936.4,2.0529]
[1752357037387,0.9119,2936.8,2936.7,0.68073]
[1752357037589,3.2078,2936.9,2936.8,2.38091]
[1752357037883,3.2078,2936.9,2936.8,5.78431]
[1752357040089,3.2078,2936.9,2936.8,6.87491036]
[1752357040985,0.9119,2937.2,2937.1,1.20514]
[1752357041192,1.839,2937.2,2937.1,29.32824]
[1752357041890,0.9119,2937.2,2937.1,29.32824]
[1752357043589,1.839,2937.2,2937.1,29.32824]
[1752357043991,2.4707,2937.2,2937.1,28.15254]
[1752357045389,1.839,2937.8,2937.3,0.5245]
[1752357045685,0.63558911,2937.9,2937.8,6.55598]
[1752357045893,1.63330638,2937.9,2937.8,50.21958]
[1752357046193,1.63330638,2937.9,2937.8,53.62298]
[1752357046893,1.26728911,2937.9,2937.8,53.62298]
[1752357047586,2.17918911,2937.9,2937.8,53.62298]
[1752357050193,2.85964911,2937.9,2937.8,51.1008]
[1752357050394,2.85964911,2937.9,2937.8,47.6974]
[1752357050587,2.85964911,2937.9,2937.8,47.067]
[1752357052686,2.85964911,2937.9,2937.8,47.74748]
[1752357055991,2.85964911,2937.9,2937.8,47.067]
[1752357056991,0.68048,2937.8,2937.7,47.6665]
[1752357057198,3.15118,2937.8,2937.7,46.986]
[1752357059318,6.35898,2937.8,2937.7,46.986]
[1752357065702,3.15132,2937.2,2937.1,6.36052]
[1752357065904,3.15132,2937.2,2937.1,50.07872]
[1752357066208,3.15132,2937.2,2937.1,53.48212]
[1752357068405,2.23942,2937.2,2937.1,53.48212]
[1752357071008,3.22332,2937.2,2937.1,53.48212]
[1752357071910,3.22332,2937.2,2937.1,50.16274]
[1752357073117,2.5427,2937.2,2937.1,50.16274]
[1752357073717,2.5427,2937.2,2937.1,51.36884]
[1752357090026,1.911,2937.2,2937.1,51.36884]
[1752357090221,1.911,2937.2,2937.1,54.57664]
[1752357090421,0.6507,2937.6,2937.5,1.32724]
[1752357090622,2.31515,2937.6,2937.5,24.0327]
[1752357091027,3.23875,2937.6,2937.5,24.0327]
[1752357091828,3.23875,2937.6,2937.5,24.71325]
[1752357096029,3.23875,2937.6,2937.5,25.91605]
[1752357096528,3.23875,2937.6,2937.5,25.32925]
[1752357096730,3.23875,2937.6,2937.5,24.71325]
[1752357097431,3.23875,2937.6,2937.5,24.0327]
[1752357097831,3.23875,2937.6,2937.5,24.71325]
[1752357098630,3.23875,2937.6,2937.5,24.0327]